[Event "*** Titled Tuesday Blitz"]
[Site "Chess.com"]
[Date "2021.03.30"]
[Round "9"]
[White "UCantHandleDenker"]
[Black "NoGalloNoParty"]
[Result "1-0"]
[WhiteElo "2533"]
[BlackElo "2392"]
[TimeControl "180+1"]
[EndTime "11:46:17 PDT"]
[Termination "UCantHandleDenker won by resignation"]

1. Nf3 {[%clk 0:03:00.9]} 1... Nf6 {[%clk 0:02:56.5]} 2. g3 {[%clk 0:03:00.2]}
2... g6 {[%clk 0:02:56]} 3. d3 {[%clk 0:03:00.6]} 3... d5 {[%clk 0:02:54.5]} 4.
Bg2 {[%clk 0:03:00.1]} 4... Bg7 {[%clk 0:02:54.7]} 5. O-O {[%clk 0:03:00.5]}
5... O-O {[%clk 0:02:54.8]} 6. Nbd2 {[%clk 0:03:00.9]} 6... c6 {[%clk
0:02:46.7]} 7. e4 {[%clk 0:03:00.3]} 7... Qc7 {[%clk 0:02:42.2]} 8. Qe2 {[%clk
0:02:59.3]} 8... dxe4 {[%clk 0:02:38.5]} 9. dxe4 {[%clk 0:02:58.3]} 9... e5
{[%clk 0:02:37.3]} 10. a4 {[%clk 0:02:56.5]} 10... a5 {[%clk 0:02:35.9]} 11. b3
{[%clk 0:02:55.3]} 11... Re8 {[%clk 0:02:33.4]} 12. Ba3 {[%clk 0:02:51.5]} 12...
Be6 {[%clk 0:02:23.6]} 13. Rad1 {[%clk 0:02:42.6]} 13... Na6 {[%clk 0:02:18.7]}
14. Ng5 {[%clk 0:02:37.5]} 14... Bg4 {[%clk 0:02:13.9]} 15. f3 {[%clk
0:02:33.9]} 15... Bc8 {[%clk 0:01:56.5]} 16. Nc4 {[%clk 0:02:33.8]} 16... Nb4
{[%clk 0:01:19.7]} 17. c3 {[%clk 0:02:26.8]} 17... h6 {[%clk 0:01:15.9]} 18. Nd6
{[%clk 0:02:07.5]} 18... hxg5 {[%clk 0:01:12.6]} 19. Nxe8 {[%clk 0:02:06.6]}
19... Nxe8 {[%clk 0:01:12.5]} 20. cxb4 {[%clk 0:02:06.1]} 20... Be6 {[%clk
0:01:10.6]} 21. b5 {[%clk 0:01:58.5]} 21... Bxb3 {[%clk 0:01:07]} 22. Rc1 {[%clk
0:01:58.6]} 22... Bxa4 {[%clk 0:01:06.2]} 23. bxc6 {[%clk 0:01:49.6]} 23... Bxc6
{[%clk 0:01:04.5]} 24. Rfd1 {[%clk 0:01:48.8]} 24... Bf8 {[%clk 0:00:55.3]} 25.
Bxf8 {[%clk 0:01:44.1]} 25... Kxf8 {[%clk 0:00:56.2]} 26. Qd2 {[%clk 0:01:41.3]}
26... Nf6 {[%clk 0:00:52.2]} 27. Qxg5 {[%clk 0:01:28.6]} 27... Kg7 {[%clk
0:00:50.7]} 28. Bf1 {[%clk 0:01:29.1]} 28... a4 {[%clk 0:00:48.5]} 29. Bc4
{[%clk 0:01:26.1]} 29... a3 {[%clk 0:00:30.3]} 30. Ba2 {[%clk 0:01:24.9]} 30...
Qa5 {[%clk 0:00:26]} 31. Qe3 {[%clk 0:01:21]} 31... Nd7 {[%clk 0:00:11.6]} 32.
Qb3 {[%clk 0:01:18.2]} 32... Rf8 {[%clk 0:00:09.7]} 33. Rxc6 {[%clk 0:01:07.9]}
33... bxc6 {[%clk 0:00:08.6]} 34. Rxd7 {[%clk 0:01:07.5]} 34... Qc5+ {[%clk
0:00:08.6]} 35. Kg2 {[%clk 0:01:04.3]} 35... Qc1 {[%clk 0:00:07]} 36. Rxf7+
{[%clk 0:01:03]} 36... Kh6 {[%clk 0:00:07.1]} 37. Rxf8 {[%clk 0:00:58]} 1-0

[Event "*** Titled Tuesday Blitz"]
[Site "Chess.com"]
[Date "2021.03.30"]
[Round "9"]
[White "scandalgod"]
[Black "picturesquecheck"]
[Result "1-0"]
[WhiteElo "2477"]
[BlackElo "2274"]
[TimeControl "180+1"]
[EndTime "11:46:17 PDT"]
[Termination "scandalgod won by resignation"]

1. d4 {[%clk 0:03:00.9]} 1... Nf6 {[%clk 0:02:58]} 2. c4 {[%clk 0:03:01.1]} 2...
e6 {[%clk 0:02:57.4]} 3. g3 {[%clk 0:03:01.3]} 3... Bb4+ {[%clk 0:02:57]} 4. Bd2
{[%clk 0:03:00]} 4... Be7 {[%clk 0:02:56.1]} 5. Nf3 {[%clk 0:02:59.3]} 5... O-O
{[%clk 0:02:55.3]} 6. Bg2 {[%clk 0:02:59.8]} 6... d5 {[%clk 0:02:54.2]} 7. O-O
{[%clk 0:02:59.7]} 7... c6 {[%clk 0:02:54.7]} 8. Qb3 {[%clk 0:02:59.1]} 8... b6
{[%clk 0:02:54.7]} 9. Bb4 {[%clk 0:02:58.9]} 9... Bb7 {[%clk 0:02:54]} 10. Nbd2
{[%clk 0:02:58.7]} 10... Nbd7 {[%clk 0:02:52.6]} 11. Rfd1 {[%clk 0:02:52.3]}
11... Rc8 {[%clk 0:02:50.6]} 12. Rac1 {[%clk 0:02:44.2]} 12... c5 {[%clk
0:02:47.2]} 13. Ba3 {[%clk 0:02:27.8]} 13... cxd4 {[%clk 0:02:40.9]} 14. Nxd4
{[%clk 0:02:20.9]} 14... dxc4 {[%clk 0:02:38.6]} 15. Nxc4 {[%clk 0:02:18.2]}
15... Bxg2 {[%clk 0:02:39]} 16. Kxg2 {[%clk 0:02:18.1]} 16... Bxa3 {[%clk
0:02:38.3]} 17. Qxa3 {[%clk 0:02:15]} 17... a5 {[%clk 0:02:17.5]} 18. Qd6 {[%clk
0:01:52.6]} 18... Rc5 {[%clk 0:01:54.3]} 19. Kg1 {[%clk 0:01:25]} 19... Rd5
{[%clk 0:01:49.5]} 20. Qc6 {[%clk 0:01:06.1]} 20... Qa8 {[%clk 0:01:29.5]} 21.
Qxa8 {[%clk 0:01:02.6]} 21... Rxa8 {[%clk 0:01:24.9]} 22. Nc6 {[%clk 0:01:00.8]}
22... Kf8 {[%clk 0:01:12.3]} 23. Rxd5 {[%clk 0:00:54.6]} 23... exd5 {[%clk
0:01:08.1]} 24. Nd6 {[%clk 0:00:50.5]} 24... Nc5 {[%clk 0:01:04.2]} 25. Nd4
{[%clk 0:00:45.9]} 25... Rd8 {[%clk 0:01:01.9]} 26. N6b5 {[%clk 0:00:37]} 26...
Nfe4 {[%clk 0:00:59.6]} 27. a3 {[%clk 0:00:32.9]} 27... a4 {[%clk 0:00:54.9]}
28. Rd1 {[%clk 0:00:27.6]} 28... Nf6 {[%clk 0:00:49]} 29. f3 {[%clk 0:00:24]}
29... Ne6 {[%clk 0:00:43.2]} 30. Kf2 {[%clk 0:00:22]} 30... Nxd4 {[%clk
0:00:38.4]} 31. Rxd4 {[%clk 0:00:21.9]} 31... Rc8 {[%clk 0:00:37.1]} 32. Rxa4
{[%clk 0:00:21.3]} 32... Rc2 {[%clk 0:00:36.3]} 33. Rb4 {[%clk 0:00:20.7]} 33...
g6 {[%clk 0:00:35.8]} 34. Nd4 {[%clk 0:00:20.5]} 34... Nd7 {[%clk 0:00:35.1]}
35. Nxc2 {[%clk 0:00:19.8]} 1-0

[Event "*** Titled Tuesday Blitz"]
[Site "Chess.com"]
[Date "2021.03.30"]
[Round "9"]
[White "vinniethepooh"]
[Black "elohunter1999"]
[Result "1-0"]
[WhiteElo "2675"]
[BlackElo "2541"]
[TimeControl "180+1"]
[EndTime "11:46:26 PDT"]
[Termination "vinniethepooh won by resignation"]

1. d4 {[%clk 0:03:00.9]} 1... Nf6 {[%clk 0:02:58.9]} 2. c4 {[%clk 0:03:01.5]}
2... e6 {[%clk 0:02:53.4]} 3. Nc3 {[%clk 0:03:01.9]} 3... d5 {[%clk 0:02:49.4]}
4. cxd5 {[%clk 0:03:01.9]} 4... Nxd5 {[%clk 0:02:49.4]} 5. e4 {[%clk 0:03:01.3]}
5... Nxc3 {[%clk 0:02:49.6]} 6. bxc3 {[%clk 0:03:02.2]} 6... c5 {[%clk
0:02:50.5]} 7. Nf3 {[%clk 0:03:02.8]} 7... cxd4 {[%clk 0:02:50.8]} 8. cxd4
{[%clk 0:03:03.7]} 8... Bb4+ {[%clk 0:02:51.5]} 9. Bd2 {[%clk 0:03:04.3]} 9...
Bxd2+ {[%clk 0:02:52.2]} 10. Qxd2 {[%clk 0:03:05.2]} 10... O-O {[%clk
0:02:52.9]} 11. Bc4 {[%clk 0:03:05.3]} 11... Nd7 {[%clk 0:02:52.5]} 12. O-O
{[%clk 0:03:05.3]} 12... b6 {[%clk 0:02:53.1]} 13. Rad1 {[%clk 0:03:04.1]} 13...
Bb7 {[%clk 0:02:50.7]} 14. Rfe1 {[%clk 0:03:04.7]} 14... Rc8 {[%clk 0:02:47.6]}
15. Bd3 {[%clk 0:03:03.4]} 15... h6 {[%clk 0:02:41.7]} 16. h3 {[%clk 0:03:02.8]}
16... Qe7 {[%clk 0:02:32.3]} 17. Qb2 {[%clk 0:03:02.8]} 17... Rc7 {[%clk
0:02:18]} 18. d5 {[%clk 0:03:02.8]} 18... exd5 {[%clk 0:02:10.6]} 19. exd5
{[%clk 0:02:49.9]} 19... Qf6 {[%clk 0:01:53.8]} 20. Qxf6 {[%clk 0:02:26.1]}
20... Nxf6 {[%clk 0:01:54.7]} 21. d6 {[%clk 0:02:26.3]} 21... Rc5 {[%clk
0:01:30.2]} 22. Ne5 {[%clk 0:02:14.8]} 22... Rd8 {[%clk 0:01:21.5]} 23. d7
{[%clk 0:01:45.2]} 23... Bd5 {[%clk 0:00:36.8]} 24. Rc1 {[%clk 0:01:44.3]} 24...
Kf8 {[%clk 0:00:24.2]} 25. Rxc5 {[%clk 0:01:37.9]} 25... bxc5 {[%clk 0:00:25.1]}
26. Bb5 {[%clk 0:01:37.5]} 26... Bxa2 {[%clk 0:00:17.9]} 27. Ra1 {[%clk
0:01:31.6]} 27... Be6 {[%clk 0:00:17.8]} 28. Rxa7 {[%clk 0:01:32.1]} 28... c4
{[%clk 0:00:17.9]} 29. Kf1 {[%clk 0:01:00.8]} 29... c3 {[%clk 0:00:18.1]} 30.
Ke1 {[%clk 0:00:59.2]} 30... Ne4 {[%clk 0:00:13.1]} 31. Kd1 {[%clk 0:00:38.4]}
31... Nxf2+ {[%clk 0:00:11.9]} 32. Kc2 {[%clk 0:00:39]} 32... Ne4 {[%clk
0:00:12.1]} 33. Nc6 {[%clk 0:00:38.2]} 33... Rxd7 {[%clk 0:00:10.9]} 34. Ra8+
{[%clk 0:00:37.8]} 1-0

[Event "*** Titled Tuesday Blitz"]
[Site "Chess.com"]
[Date "2021.03.30"]
[Round "9"]
[White "GM_Crest"]
[Black "Gentlejimmy7"]
[Result "0-1"]
[WhiteElo "2698"]
[BlackElo "2511"]
[TimeControl "180+1"]
[EndTime "11:46:26 PDT"]
[Termination "Gentlejimmy7 won on time"]

1. d4 {[%clk 0:03:00.9]} 1... Nf6 {[%clk 0:02:58.7]} 2. c4 {[%clk 0:03:00]} 2...
g6 {[%clk 0:02:53.8]} 3. Nc3 {[%clk 0:02:59.6]} 3... d5 {[%clk 0:02:54.3]} 4.
cxd5 {[%clk 0:02:58.4]} 4... Nxd5 {[%clk 0:02:55.2]} 5. Nf3 {[%clk 0:02:58.6]}
5... Bg7 {[%clk 0:02:53]} 6. Bg5 {[%clk 0:02:58.7]} 6... h6 {[%clk 0:02:45.8]}
7. Bh4 {[%clk 0:02:57]} 7... c5 {[%clk 0:02:35.2]} 8. Rc1 {[%clk 0:02:56.5]}
8... Nxc3 {[%clk 0:02:30.4]} 9. bxc3 {[%clk 0:02:56.4]} 9... O-O {[%clk
0:02:28.5]} 10. e3 {[%clk 0:02:56.7]} 10... Nc6 {[%clk 0:02:28.7]} 11. Qd2
{[%clk 0:02:56]} 11... Qa5 {[%clk 0:02:26.4]} 12. d5 {[%clk 0:02:51.8]} 12...
Rd8 {[%clk 0:02:22.1]} 13. c4 {[%clk 0:02:51.3]} 13... Nb4 {[%clk 0:02:20.8]}
14. Bxe7 {[%clk 0:02:46.1]} 14... Rd7 {[%clk 0:02:20]} 15. Bh4 {[%clk
0:02:00.1]} 15... Qxa2 {[%clk 0:02:17.9]} 16. Be2 {[%clk 0:01:55.9]} 16... Qxd2+
{[%clk 0:02:07.9]} 17. Nxd2 {[%clk 0:01:55.5]} 17... a5 {[%clk 0:02:06.2]} 18.
Ne4 {[%clk 0:01:53]} 18... g5 {[%clk 0:02:02.3]} 19. Bg3 {[%clk 0:01:52]} 19...
b6 {[%clk 0:01:59.5]} 20. h4 {[%clk 0:01:01.2]} 20... a4 {[%clk 0:01:54.3]} 21.
hxg5 {[%clk 0:01:00.9]} 21... hxg5 {[%clk 0:01:51.3]} 22. Kd2 {[%clk 0:00:50.7]}
22... a3 {[%clk 0:01:48.6]} 23. Nxg5 {[%clk 0:00:51]} 23... a2 {[%clk 0:01:46]}
24. Ra1 {[%clk 0:00:51]} 24... b5 {[%clk 0:01:39.2]} 25. e4 {[%clk 0:00:49.8]}
25... bxc4 {[%clk 0:01:32.8]} 26. Bxc4 {[%clk 0:00:49.6]} 26... Ba6 {[%clk
0:01:27.8]} 27. Bxa6 {[%clk 0:00:49.1]} 27... Rxa6 {[%clk 0:01:25.6]} 28. Rhc1
{[%clk 0:00:48.1]} 28... Bxa1 {[%clk 0:01:21.5]} 29. Rxa1 {[%clk 0:00:47.5]}
29... Nxd5 {[%clk 0:01:20.2]} 30. Nf3 {[%clk 0:00:25.6]} 30... Nb4+ {[%clk
0:01:14.1]} 31. Kc1 {[%clk 0:00:21.1]} 31... Ra3 {[%clk 0:01:12.5]} 32. Be5
{[%clk 0:00:20.2]} 32... Nd3+ {[%clk 0:01:09]} 33. Kc2 {[%clk 0:00:20.4]} 33...
Nxe5 {[%clk 0:01:07.2]} 34. Nxe5 {[%clk 0:00:20.8]} 34... Rd4 {[%clk 0:01:07.3]}
35. f3 {[%clk 0:00:20.6]} 35... Re3 {[%clk 0:01:01.3]} 36. Ng4 {[%clk
0:00:19.7]} 36... Re2+ {[%clk 0:00:59.9]} 37. Kc3 {[%clk 0:00:20.2]} 37... Rxg2
{[%clk 0:00:59.2]} 38. Nf6+ {[%clk 0:00:19.4]} 38... Kg7 {[%clk 0:00:59.1]} 39.
Nd5 {[%clk 0:00:19.2]} 39... Rf2 {[%clk 0:00:56.7]} 40. f4 {[%clk 0:00:19.3]}
40... Rxe4 {[%clk 0:00:55.5]} 0-1

[Event "*** Titled Tuesday Blitz"]
[Site "Chess.com"]
[Date "2021.03.30"]
[Round "9"]
[White "Iskusnyh"]
[Black "tptagain"]
[Result "1/2-1/2"]
[WhiteElo "2655"]
[BlackElo "2823"]
[TimeControl "180+1"]
[EndTime "11:46:34 PDT"]
[Termination "Game drawn by repetition"]

1. d4 {[%clk 0:02:55.6]} 1... Nf6 {[%clk 0:02:59.1]} 2. c4 {[%clk 0:02:55.1]}
2... g6 {[%clk 0:02:59.1]} 3. g3 {[%clk 0:02:55.5]} 3... Bg7 {[%clk 0:02:54.8]}
4. Bg2 {[%clk 0:02:56.1]} 4... O-O {[%clk 0:02:51.6]} 5. Nc3 {[%clk 0:02:55.3]}
5... d6 {[%clk 0:02:50.9]} 6. Nf3 {[%clk 0:02:54.7]} 6... Nc6 {[%clk 0:02:49]}
7. O-O {[%clk 0:02:54.8]} 7... a6 {[%clk 0:02:48.1]} 8. b3 {[%clk 0:02:43.9]}
8... e5 {[%clk 0:02:40.3]} 9. dxe5 {[%clk 0:02:42.6]} 9... dxe5 {[%clk
0:02:39.2]} 10. Ba3 {[%clk 0:02:36.4]} 10... Re8 {[%clk 0:02:34.4]} 11. Qxd8
{[%clk 0:02:34.2]} 11... Nxd8 {[%clk 0:02:31.5]} 12. Rad1 {[%clk 0:02:31.1]}
12... e4 {[%clk 0:02:27.6]} 13. Nd4 {[%clk 0:02:01.9]} 13... b6 {[%clk
0:02:00.9]} 14. e3 {[%clk 0:01:32.8]} 14... Bb7 {[%clk 0:01:52.7]} 15. Rd2
{[%clk 0:01:30.2]} 15... c5 {[%clk 0:01:38.2]} 16. Nde2 {[%clk 0:01:25.8]} 16...
Bf8 {[%clk 0:01:28.4]} 17. Nf4 {[%clk 0:01:18.4]} 17... Ne6 {[%clk 0:01:20.5]}
18. Nfd5 {[%clk 0:01:16.9]} 18... Nxd5 {[%clk 0:01:20.1]} 19. Nxd5 {[%clk
0:01:16.5]} 19... Bxd5 {[%clk 0:01:20]} 20. Rxd5 {[%clk 0:01:14.8]} 20... f5
{[%clk 0:01:19.8]} 21. Rfd1 {[%clk 0:01:12.4]} 21... Kf7 {[%clk 0:01:15.7]} 22.
g4 {[%clk 0:01:11.7]} 22... fxg4 {[%clk 0:01:01.7]} 23. Bxe4 {[%clk 0:01:11]}
23... Rad8 {[%clk 0:01:01.3]} 24. Rd7+ {[%clk 0:01:01.3]} 24... Be7 {[%clk
0:00:57.4]} 25. Bb2 {[%clk 0:00:46.2]} 25... a5 {[%clk 0:00:53.9]} 26. R1d5
{[%clk 0:00:40]} 26... Ng5 {[%clk 0:00:40.7]} 27. Bg2 {[%clk 0:00:23.9]} 27...
Nf3+ {[%clk 0:00:40.2]} 28. Bxf3 {[%clk 0:00:23.7]} 28... gxf3 {[%clk
0:00:41.1]} 29. Kf1 {[%clk 0:00:20.4]} 29... Ke6 {[%clk 0:00:32.6]} 30. Rxd8
{[%clk 0:00:18.2]} 30... Rxd8 {[%clk 0:00:32.5]} 31. e4 {[%clk 0:00:17.3]} 31...
Rf8 {[%clk 0:00:24.9]} 32. Re5+ {[%clk 0:00:16]} 32... Kd7 {[%clk 0:00:25.1]}
33. Rd5+ {[%clk 0:00:16.2]} 33... Ke6 {[%clk 0:00:25.2]} 34. Re5+ {[%clk
0:00:16.3]} 34... Kf7 {[%clk 0:00:25.5]} 35. Rd5 {[%clk 0:00:16]} 35... Ke6
{[%clk 0:00:19]} 1/2-1/2

[Event "*** Titled Tuesday Blitz"]
[Site "Chess.com"]
[Date "2021.03.30"]
[Round "9"]
[White "SanchezKelvin"]
[Black "noblerone"]
[Result "1-0"]
[WhiteElo "2598"]
[BlackElo "2393"]
[TimeControl "180+1"]
[EndTime "11:46:35 PDT"]
[Termination "SanchezKelvin won on time"]

1. d4 {[%clk 0:02:55.1]} 1... d5 {[%clk 0:03:00]} 2. c4 {[%clk 0:02:52.9]} 2...
c6 {[%clk 0:03:00.2]} 3. Nf3 {[%clk 0:02:53.1]} 3... Nf6 {[%clk 0:03:00.5]} 4.
Nc3 {[%clk 0:02:53]} 4... dxc4 {[%clk 0:03:00.3]} 5. a4 {[%clk 0:02:52.7]} 5...
Bf5 {[%clk 0:02:59.8]} 6. Ne5 {[%clk 0:02:52.1]} 6... Nbd7 {[%clk 0:02:57.7]} 7.
Nxc4 {[%clk 0:02:52]} 7... Qc7 {[%clk 0:02:56.1]} 8. g3 {[%clk 0:02:52.1]} 8...
e5 {[%clk 0:02:51.1]} 9. dxe5 {[%clk 0:02:53]} 9... Nxe5 {[%clk 0:02:51]} 10.
Bf4 {[%clk 0:02:53.3]} 10... Nfd7 {[%clk 0:02:51]} 11. Bg2 {[%clk 0:02:51.8]}
11... f6 {[%clk 0:02:50.3]} 12. O-O {[%clk 0:02:50.3]} 12... Be6 {[%clk
0:02:45.4]} 13. Nxe5 {[%clk 0:02:49.6]} 13... fxe5 {[%clk 0:02:45.4]} 14. Bg5
{[%clk 0:02:45.5]} 14... h6 {[%clk 0:02:45.5]} 15. Be3 {[%clk 0:02:40.8]} 15...
Bc5 {[%clk 0:02:45.8]} 16. Bxc5 {[%clk 0:02:37.5]} 16... Nxc5 {[%clk 0:02:46.7]}
17. Qc2 {[%clk 0:02:34.6]} 17... O-O {[%clk 0:02:38.8]} 18. b4 {[%clk
0:02:26.7]} 18... Nb3 {[%clk 0:02:20.9]} 19. Rad1 {[%clk 0:02:05.5]} 19... Nd4
{[%clk 0:02:08.7]} 20. Qb2 {[%clk 0:02:04.9]} 20... Rad8 {[%clk 0:01:58.2]} 21.
Ne4 {[%clk 0:02:00.8]} 21... Bd5 {[%clk 0:01:44]} 22. Nc5 {[%clk 0:01:45.6]}
22... Bxg2 {[%clk 0:01:37.2]} 23. Kxg2 {[%clk 0:01:46.5]} 23... Qf7 {[%clk
0:01:27.2]} 24. f4 {[%clk 0:01:34.6]} 24... exf4 {[%clk 0:00:46.6]} 25. Rxd4
{[%clk 0:01:32]} 25... Rfe8 {[%clk 0:00:17.8]} 26. Rdxf4 {[%clk 0:01:21.3]}
26... Qe7 {[%clk 0:00:15.8]} 27. R4f2 {[%clk 0:01:15.1]} 27... Kh8 {[%clk
0:00:15.4]} 28. Nd3 {[%clk 0:01:12.7]} 28... Qe3 {[%clk 0:00:15]} 29. Nf4 {[%clk
0:01:10.9]} 29... Qe4+ {[%clk 0:00:14.7]} 30. Kg1 {[%clk 0:01:10.7]} 30... Rd7
{[%clk 0:00:09.2]} 31. Qc3 {[%clk 0:01:04.4]} 31... Rde7 {[%clk 0:00:08.6]} 32.
Qf3 {[%clk 0:01:02.2]} 32... Qh7 {[%clk 0:00:06.9]} 33. Qg4 {[%clk 0:00:59.3]}
33... g5 {[%clk 0:00:05.6]} 34. Nh5 {[%clk 0:00:55.5]} 34... Re4 {[%clk
0:00:06]} 35. Qf3 {[%clk 0:00:52.1]} 35... Qg6 {[%clk 0:00:04.3]} 36. Nf6 {[%clk
0:00:50.9]} 36... Re3 {[%clk 0:00:04.3]} 37. Qg4 {[%clk 0:00:47.7]} 37... R8e6
{[%clk 0:00:03.7]} 38. Qd4 {[%clk 0:00:45.5]} 38... R3e5 {[%clk 0:00:02.5]} 39.
Qd8+ {[%clk 0:00:45]} 1-0

[Event "*** Titled Tuesday Blitz"]
[Site "Chess.com"]
[Date "2021.03.30"]
[Round "9"]
[White "annacramling"]
[Black "Grineva_Marianna"]
[Result "0-1"]
[WhiteElo "2081"]
[BlackElo "2258"]
[TimeControl "180+1"]
[EndTime "11:46:44 PDT"]
[Termination "Grineva_Marianna won on time"]

1. d4 {[%clk 0:03:00.9]} 1... d6 {[%clk 0:02:59.3]} 2. Nf3 {[%clk 0:03:00.5]}
2... c6 {[%clk 0:02:59.7]} 3. e3 {[%clk 0:03:00]} 3... Nd7 {[%clk 0:03:00]} 4.
c4 {[%clk 0:03:00.2]} 4... h6 {[%clk 0:03:00.5]} 5. Nc3 {[%clk 0:02:59.8]} 5...
g5 {[%clk 0:03:00.9]} 6. h3 {[%clk 0:02:59.5]} 6... Bg7 {[%clk 0:03:01.4]} 7.
Bd3 {[%clk 0:02:58.3]} 7... Nf8 {[%clk 0:03:01.8]} 8. Bd2 {[%clk 0:02:51.5]}
8... Ne6 {[%clk 0:03:02.1]} 9. d5 {[%clk 0:02:49.4]} 9... Nc5 {[%clk 0:02:59]}
10. Bc2 {[%clk 0:02:47.2]} 10... a5 {[%clk 0:02:58.9]} 11. Nd4 {[%clk
0:02:43.7]} 11... Bxd4 {[%clk 0:02:45.3]} 12. exd4 {[%clk 0:02:43.6]} 12... Nd7
{[%clk 0:02:45.8]} 13. h4 {[%clk 0:02:09.6]} 13... g4 {[%clk 0:02:36.3]} 14.
Qxg4 {[%clk 0:02:05.4]} 14... Ngf6 {[%clk 0:02:36.5]} 15. Qf3 {[%clk 0:01:56.4]}
15... c5 {[%clk 0:02:29.7]} 16. Nb5 {[%clk 0:01:48.8]} 16... cxd4 {[%clk
0:02:25.9]} 17. Nxd4 {[%clk 0:01:49.7]} 17... Ne5 {[%clk 0:02:25.6]} 18. Qe2
{[%clk 0:01:47.7]} 18... Bg4 {[%clk 0:02:22.9]} 19. f3 {[%clk 0:01:47.8]} 19...
Bd7 {[%clk 0:02:23.3]} 20. Nf5 {[%clk 0:01:34.1]} 20... Qb6 {[%clk 0:02:13.2]}
21. Bc3 {[%clk 0:01:20.2]} 21... Rc8 {[%clk 0:02:08.6]} 22. b3 {[%clk
0:01:05.4]} 22... Rg8 {[%clk 0:01:53]} 23. Nxh6 {[%clk 0:00:44.8]} 23... Rxg2
{[%clk 0:01:42.1]} 24. Qxg2 {[%clk 0:00:41.6]} 24... Qe3+ {[%clk 0:01:42.3]} 25.
Qe2 {[%clk 0:00:25.3]} 25... Nxf3+ {[%clk 0:01:27.7]} 26. Kf1 {[%clk 0:00:20]}
26... Qxc3 {[%clk 0:01:27.6]} 27. Kg2 {[%clk 0:00:17.1]} 27... Nd4 {[%clk
0:01:18.8]} 28. Qf2 {[%clk 0:00:04.4]} 28... Nxc2 {[%clk 0:01:12.7]} 29. Rhf1
{[%clk 0:00:03.9]} 29... Ne3+ {[%clk 0:01:05.6]} 30. Kg1 {[%clk 0:00:02.9]}
30... Nxf1 {[%clk 0:01:05.1]} 31. Rxf1 {[%clk 0:00:03.8]} 31... Qh3 {[%clk
0:01:00.1]} 32. Qf4 {[%clk 0:00:02.8]} 32... b5 {[%clk 0:00:53.5]} 33. Rf2
{[%clk 0:00:02.4]} 33... bxc4 {[%clk 0:00:52.7]} 34. Rg2 {[%clk 0:00:02.4]}
34... cxb3 {[%clk 0:00:40.8]} 35. axb3 {[%clk 0:00:01.9]} 35... Rc1+ {[%clk
0:00:39.6]} 36. Qxc1 {[%clk 0:00:01.8]} 36... Qxb3 {[%clk 0:00:36.8]} 37. Qf1
{[%clk 0:00:01.2]} 37... Qxd5 {[%clk 0:00:34.2]} 38. Qf2 {[%clk 0:00:01.2]}
38... Qd1+ {[%clk 0:00:32.9]} 0-1

[Event "*** Titled Tuesday Blitz"]
[Site "Chess.com"]
[Date "2021.03.30"]
[Round "9"]
[White "chenrip"]
[Black "ecwinslow"]
[Result "0-1"]
[WhiteElo "2462"]
[BlackElo "2311"]
[TimeControl "180+1"]
[EndTime "11:46:45 PDT"]
[Termination "ecwinslow won by checkmate"]

1. e4 {[%clk 0:03:00.9]} 1... c5 {[%clk 0:02:54.8]} 2. Nf3 {[%clk 0:03:00.6]}
2... d6 {[%clk 0:02:54.6]} 3. Bb5+ {[%clk 0:03:00.7]} 3... Nd7 {[%clk
0:02:53.8]} 4. a4 {[%clk 0:03:01]} 4... Nf6 {[%clk 0:02:53.8]} 5. Nc3 {[%clk
0:03:00.2]} 5... e6 {[%clk 0:02:49.9]} 6. d4 {[%clk 0:02:59.1]} 6... cxd4 {[%clk
0:02:48.8]} 7. Nxd4 {[%clk 0:03:00]} 7... Be7 {[%clk 0:02:47.9]} 8. O-O {[%clk
0:02:58.9]} 8... O-O {[%clk 0:02:47.7]} 9. Be3 {[%clk 0:02:58.7]} 9... Nc5
{[%clk 0:02:36.7]} 10. f3 {[%clk 0:02:57.3]} 10... a6 {[%clk 0:02:36.6]} 11. Be2
{[%clk 0:02:56.9]} 11... Qc7 {[%clk 0:02:35.8]} 12. a5 {[%clk 0:02:55.8]} 12...
e5 {[%clk 0:02:30.2]} 13. Nf5 {[%clk 0:02:54.7]} 13... Be6 {[%clk 0:02:27.2]}
14. Nxe7+ {[%clk 0:02:40.8]} 14... Qxe7 {[%clk 0:02:26.3]} 15. Nd5 {[%clk
0:02:41.3]} 15... Bxd5 {[%clk 0:02:14.2]} 16. exd5 {[%clk 0:02:42.2]} 16... Rac8
{[%clk 0:02:11.7]} 17. b4 {[%clk 0:02:38.8]} 17... Ncd7 {[%clk 0:02:11.2]} 18.
c4 {[%clk 0:02:38.7]} 18... e4 {[%clk 0:02:08.7]} 19. f4 {[%clk 0:02:37.1]}
19... g6 {[%clk 0:02:02.9]} 20. Qd4 {[%clk 0:02:33.6]} 20... h5 {[%clk
0:01:56.9]} 21. h3 {[%clk 0:02:32.5]} 21... Kh7 {[%clk 0:01:53.2]} 22. Rac1
{[%clk 0:02:26.4]} 22... Ne8 {[%clk 0:01:48.3]} 23. c5 {[%clk 0:02:20.8]} 23...
f5 {[%clk 0:01:34.6]} 24. c6 {[%clk 0:02:14.5]} 24... Ndf6 {[%clk 0:01:30.5]}
25. Rfd1 {[%clk 0:01:43.5]} 25... Rb8 {[%clk 0:01:17.4]} 26. Qb6 {[%clk
0:01:36.8]} 26... Nc7 {[%clk 0:01:11.5]} 27. cxb7 {[%clk 0:01:14.7]} 27... Ncxd5
{[%clk 0:01:04.7]} 28. Qxa6 {[%clk 0:01:10.6]} 28... Nxe3 {[%clk 0:01:02.6]} 29.
Rxd6 {[%clk 0:01:10.3]} 29... Rxb7 {[%clk 0:00:54.6]} 30. Rcc6 {[%clk
0:01:08.5]} 30... Ned5 {[%clk 0:00:50.8]} 31. Re6 {[%clk 0:00:48.3]} 31... Qxb4
{[%clk 0:00:39.6]} 32. Rxf6 {[%clk 0:00:44.3]} 32... Nxf6 {[%clk 0:00:33.8]} 33.
Rxf6 {[%clk 0:00:44.1]} 33... Qd4+ {[%clk 0:00:27.9]} 34. Kh2 {[%clk 0:00:42.2]}
34... Rxf6 {[%clk 0:00:19.6]} 35. Qxb7+ {[%clk 0:00:42.1]} 35... Kh6 {[%clk
0:00:19.4]} 36. a6 {[%clk 0:00:38.3]} 36... Qd6 {[%clk 0:00:18]} 37. g3 {[%clk
0:00:35.8]} 37... h4 {[%clk 0:00:16.9]} 38. Qc8 {[%clk 0:00:33.7]} 38... hxg3+
{[%clk 0:00:14.9]} 39. Kxg3 {[%clk 0:00:33.1]} 39... Qa3+ {[%clk 0:00:12.9]} 40.
Kh4 {[%clk 0:00:30.1]} 40... Rf8 {[%clk 0:00:11.8]} 41. Qe6 {[%clk 0:00:24.9]}
41... Qa5 {[%clk 0:00:08.5]} 42. Qe7 {[%clk 0:00:22.5]} 42... Qe1# {[%clk
0:00:08]} 0-1